bitfinex-derivatives/quotes_SOLF0:USTF0_20251023
["timestamp","ask_amount","ask_price","bid_price","bid_amount"]
[1761252170520,5.39375166,190.09,190.05,2.7]
[1761252170713,9.95759584,190.09,190.05,2.7]
[1761252171122,1.58,190.08,190.05,2.7]
[1761252173423,1.58,190.08,190.01,2.7]
[1761252173621,1.58,190.08,190.01,7.4353]
[1761252174217,1.58,190.08,190.02,2.7]
[1761252174823,3.35184793,190.08,190.02,2.7]
[1761252175023,4.7339,190.07,190.02,2.7]
[1761252175219,6.3139,190.07,190.02,2.7]
[1761252175429,1.58,190.06,190.02,2.7]
[1761252178517,5.39346377,190.06,190.02,2.7]
[1761252182830,3.81346377,190.06,190.02,2.7]
[1761252183030,1.58,190.05,190.02,2.7]
[1761252183233,1.58,190.05,190.01,4.7353]
[1761252183433,1.58,190.05,190.01,7.6053]
[1761252183932,1.58,190.05,190.02,2.87]
[1761252184129,1.77184793,190.04,189.98,2.87]
[1761252184329,1.58,190.03,189.98,2.87]
[1761252185233,4.7352,190.02,189.98,2.87]
[1761252186339,6.3152,190.02,189.98,2.87]
[1761252190727,8.08704793,190.02,189.98,2.87]
[1761252191341,6.50704793,190.02,189.98,2.87]
[1761252191541,1.58,190.01,189.98,2.87]
[1761252191932,1.58,190.0,189.96,2.87]
[1761252192741,1.58,190.01,189.97,2.87]
[1761252193144,5.39319628,190.01,189.97,2.87]
[1761252193435,1.58,190.01,189.97,2.87]
[1761252193840,5.39319628,190.01,189.97,2.87]
[1761252195036,1.58,190.01,189.97,2.87]
[1761252198439,6.50704793,190.02,189.98,2.87]
[1761252198741,8.08704793,190.02,189.98,2.87]
[1761252198941,6.50704793,190.02,189.98,2.87]
[1761252199141,1.58,190.01,189.98,2.87]
[1761252209954,1.58,190.01,189.95,2.65]
[1761252210954,6.3157,190.0,189.95,4.7367]
[1761252211153,6.3157,190.0,189.96,2.65]
[1761252212658,8.08754793,190.0,189.96,2.65]
[1761252214765,4.7352,190.02,189.95,1.77184793]
[1761252214959,4.7352,190.02,189.96,2.65]
[1761252215666,8.54791542,190.02,189.96,2.65]
[1761252215960,8.54791542,190.02,189.97,4.7362]
[1761252216165,1.58,190.01,189.98,2.65]
[1761252216365,5.39271542,190.01,189.98,2.65]
[1761252218165,3.81271542,190.01,189.98,2.65]
[1761252218366,10.12791542,190.02,189.98,2.65]
[1761252218568,3.81271542,190.01,189.98,2.65]
[1761252220364,1.58,190.02,189.98,2.65]
[1761252220669,1.58,190.01,189.98,2.65]
[1761252222767,5.39271542,190.01,189.98,2.65]
[1761252227375,9.93397461,190.01,189.98,2.65]
[1761252227578,3.81271542,190.0,189.98,2.65]
[1761252227771,9.93397766,190.01,189.98,2.65]
[1761252227968,3.81271542,190.0,189.98,2.65]
[1761252228164,9.93397767,190.01,189.98,2.65]
[1761252228367,3.81271542,190.0,189.98,2.65]
[1761252228563,9.93578632,190.01,189.98,2.65]
[1761252228768,3.81271542,190.0,189.98,2.65]
[1761252228963,9.9357612,190.01,189.98,2.65]
[1761252229174,3.81271542,190.0,189.98,2.65]
[1761252229476,5.39271542,190.01,189.98,2.65]
[1761252229873,9.93652658,190.01,189.98,2.65]
[1761252230069,3.81271542,190.0,189.98,2.65]
[1761252230870,4.83287833,190.04,189.99,2.65]
[1761252230871,1.58,190.04,189.99,2.65]
[1761252231067,3.82567448,190.05,189.99,2.65]
[1761252231263,3.82567448,190.04,189.99,2.65]
[1761252231468,8.37161208,190.05,190.0,2.65]
[1761252231777,3.82567448,190.04,190.02,2.65]
[1761252231977,8.37006144,190.05,190.02,2.65]
[1761252232175,3.82567448,190.04,190.02,2.65]
[1761252232468,8.37006144,190.05,190.02,2.65]
[1761252233375,3.82567448,190.05,190.02,2.65]
[1761252234173,5.40567448,190.05,190.02,2.65]
[1761252235171,5.40567448,190.05,190.02,7.385]
[1761252236176,5.40567448,190.05,190.03,2.65]
[1761252238578,1.58,190.04,190.02,4.735]
[1761252238778,1.58,190.04,190.0,7.3854]
[1761252238977,1.58,190.03,190.0,7.3854]
[1761252241080,1.58,190.03,190.01,2.67]
[1761252241679,5.40567448,190.04,190.01,2.67]
[1761252245374,1.58,190.03,190.01,2.67]
[1761252247687,5.40567448,190.04,190.01,2.67]
[1761252250291,5.39443198,190.04,190.01,2.67]
[1761252251788,3.81443198,190.04,190.02,2.67]
[1761252251994,4.34887562,190.09,190.02,2.67]
[1761252252483,5.39388011,190.09,190.04,2.67]
[1761252252689,1.58,190.09,190.04,2.67]
[1761252253084,1.58,190.09,190.06,2.67]
[1761252253286,5.39388011,190.09,190.06,2.67]
[1761252253687,3.81388011,190.09,190.06,2.67]
[1761252253893,1.58,190.1,190.06,2.67]
[1761252254080,5.39388011,190.1,190.06,2.67]
[1761252256796,1.58,190.09,190.06,2.67]
[1761252259399,1.58,190.08,190.0,2.67]
[1761252259900,1.58,190.05,190.0,4.7355]
[1761252260403,1.58,190.05,190.01,2.67]
[1761252261301,1.58,190.04,189.98,7.406]
[1761252262093,1.58,190.03,189.99,7.4058]
[1761252262703,1.58,190.03,190.0,2.67]
[1761252277118,6.3149,190.03,190.0,2.67]
[1761252288830,1.58,190.02,190.0,2.67]
[1761252295229,1.58,190.02,189.97,2.81]
[1761252295527,1.58,190.0,189.97,2.81]
[1761252296320,1.59538018,190.01,189.97,2.81]
[1761252296526,6.33078018,190.01,189.97,7.5463]
[1761252296729,6.33078018,190.01,189.98,2.81]
[1761252297128,4.7354,190.01,189.98,2.81]
[1761252298534,6.3154,190.01,189.98,2.81]
[1761252301038,1.58,190.0,189.96,2.69]
[1761252301233,1.58,189.96,189.89,3.60590999]
[1761252301440,1.59538018,189.93,189.9,2.69]
[1761252301638,1.58,189.92,189.9,2.69]
[1761252302040,1.59538018,189.93,189.9,2.69]
[1761252302441,3.17538018,189.93,189.9,2.69]
[1761252304038,1.59538018,189.93,189.9,2.69]
[1761252304234,1.58,189.92,189.9,2.69]
[1761252304442,1.58,189.92,189.87,4.7387]
[1761252304443,1.58,189.91,189.87,2.69]
[1761252304939,1.59538018,189.93,189.87,2.69]
[1761252305644,4.7366,189.96,189.89,1.59538018]
[1761252305836,1.59538018,189.99,189.92,2.69]
[1761252306032,3.81701742,190.01,189.95,1.59538018]
[1761252306235,4.7346,190.04,189.98,2.69]
[1761252306437,5.39871735,190.04,189.98,2.69]
[1761252306642,1.58,190.04,189.98,2.69]
[1761252307644,6.315,190.03,189.98,2.69]
[1761252308243,1.58,190.02,189.98,2.69]
[1761252310843,1.58,190.02,189.98,4.28538018]
[1761252311041,1.58,190.02,189.99,2.69]
[1761252317646,1.58,190.01,189.99,2.69]
[1761252317852,1.58,190.01,189.98,1.59538018]
[1761252318045,1.58,190.01,189.97,2.69]
[1761252319249,1.58,190.0,189.97,2.69]
[1761252320150,1.58,190.05,189.98,2.69]
[1761252320349,1.58,190.04,189.98,2.69]
[1761252321054,1.58,190.04,189.99,2.69]
[1761252321457,1.58,190.03,189.99,2.69]
[1761252328769,1.59538018,190.05,190.0,2.86]
[1761252328965,1.58,190.04,190.0,2.86]
[1761252330463,1.58,190.03,190.0,2.86]
[1761252330762,3.85228786,190.04,190.01,2.67]
[1761252330962,10.16678786,190.05,190.01,2.67]
[1761252331162,3.85228786,190.04,190.01,2.67]
[1761252331656,1.58,190.04,190.01,2.67]
[1761252331852,5.43228786,190.04,190.01,2.67]
[1761252333160,3.85228786,190.04,190.01,2.67]
[1761252333365,1.58,190.03,190.01,2.67]
[1761252335866,1.58,190.03,189.97,2.67]
[1761252336170,1.58,190.01,189.97,2.67]
[1761252336665,1.58,190.0,189.94,2.67]
[1761252337368,3.17538018,189.98,189.91,1.59538018]
[1761252337573,1.58,189.95,189.91,2.67]
[1761252339260,4.7372,189.94,189.91,2.67]
[1761252339467,1.58,189.93,189.88,2.67]
[1761252343174,1.58,189.92,189.88,2.67]
[1761252343370,3.17538018,189.92,189.88,2.67]
[1761252343563,1.58,189.89,189.82,1.59538018]
[1761252345063,1.58,189.88,189.82,1.59538018]
[1761252346068,1.58,189.86,189.8,0.91656131]
[1761252346274,1.58,189.85,189.79,1.59538018]
[1761252346475,1.58,189.85,189.79,4.26538018]
[1761252347668,1.58,189.84,189.79,2.67]
[1761252347877,1.58,189.84,189.78,1.59538018]
[1761252351087,1.58,189.83,189.77,0.91676655]
[1761252351283,1.58,189.83,189.77,4.26538018]
[1761252351587,4.7397,189.84,189.78,2.67]
[1761252351979,6.3192,189.86,189.8,2.67]
[1761252353189,1.58,189.84,189.8,4.26538018]
[1761252354090,1.58,189.84,189.8,2.67]
[1761252355486,1.58,189.87,189.81,2.67]
[1761252355692,1.58,189.87,189.83,2.67]
[1761252357083,6.3191,189.86,189.83,2.67]
[1761252357789,6.3195,189.85,189.79,2.67]
[1761252357990,1.58,189.84,189.79,2.67]
[1761252363597,1.58,189.84,189.8,2.69]
[1761252365599,59.23551815,189.94,189.81,2.69]
[1761252365600,6.3289,189.87,189.81,2.69]
[1761252366890,4.7385,189.89,189.84,2.69]
[1761252367595,4.7377,189.92,189.84,2.69]
[1761252367795,1.59,189.93,189.87,2.69]
[1761252368793,6.3274,189.93,189.88,4.7385]
[1761252368991,6.3274,189.93,189.89,2.69]
[1761252374405,1.59,189.93,189.89,2.69]
[1761252377102,1.59,189.92,189.85,2.69]
[1761252377300,2.49684094,189.92,189.85,2.69]
[1761252377601,1.59,189.91,189.85,2.69]
[1761252378004,4.7383,189.89,189.85,2.69]
[1761252378204,1.59,189.88,189.85,2.69]
[1761252378606,1.59,189.88,189.81,2.69]
[1761252380002,4.739,189.87,189.82,2.69]
[1761252380203,6.329,189.87,189.82,2.69]
[1761252380398,1.59,189.86,189.78,2.69]
[1761252380605,1.59,189.85,189.79,7.4307]
[1761252382204,6.3294,189.85,189.8,2.69]
[1761252383507,1.59,189.84,189.76,2.69]
[1761252383711,1.59,189.87,189.77,7.4312]
[1761252384710,4.74,189.83,189.78,4.7409]
[1761252384912,1.59,189.82,189.79,2.69]
[1761252385113,1.59,189.88,189.79,2.69]
[1761252385404,1.59,189.87,189.79,2.69]
[1761252386005,4.7394,189.85,189.79,2.69]
[1761252387411,1.58,189.84,189.76,2.66]
[1761252387616,1.58,189.82,189.76,2.66]
[1761252388312,5.43852478,189.82,189.76,2.66]
[1761252388608,1.58,189.82,189.76,2.66]
[1761252389013,4.7404,189.81,189.76,2.66]
[1761252389206,6.3304,189.81,189.76,2.66]
[1761252392529,1.59,189.8,189.76,2.66]
[1761252393114,2.49684094,189.8,189.73,7.4723]
[1761252393312,1.59,189.79,189.73,7.4723]
[1761252394017,6.331,189.79,189.73,7.4723]
[1761252394819,6.331,189.79,189.74,2.73]
[1761252395019,1.59,189.78,189.74,2.73]
[1761252395317,1.59,189.77,189.72,0.91698397]
[1761252395521,1.59,189.76,189.72,2.73]
[1761252396421,4.7425,189.73,189.68,2.73]
[1761252396626,6.3325,189.73,189.68,2.73]
[1761252402723,1.59,189.72,189.68,2.73]
[1761252402923,4.7425,189.73,189.68,2.73]
[1761252403118,6.3325,189.73,189.68,2.73]
[1761252403528,1.59,189.72,189.68,2.73]
[1761252406422,1.59,189.82,189.67,3.41405451]
[1761252406616,1.59,189.8,189.68,2.73]
[1761252407424,1.59,189.79,189.71,2.73]
[1761252407821,6.3309,189.79,189.73,4.7422]
[1761252408022,31.68125839,189.89,189.72,2.73]
[1761252408023,1.59,189.78,189.72,2.73]
[1761252409124,6.3312,189.78,189.73,2.73]
[1761252410728,1.59,189.78,189.74,2.73]
[1761252410933,4.7407,189.8,189.74,2.73]
[1761252411228,4.7407,189.8,189.74,7.472]
[1761252411530,1.59,189.81,189.72,2.73]
[1761252412926,6.3304,189.81,189.72,2.73]
[1761252413133,6.3304,189.81,189.75,7.4717]
[1761252413425,1.59,189.8,189.69,2.73]
[1761252413933,1.59,189.78,189.72,4.7425]
[1761252415035,1.59,189.77,189.72,4.7425]
[1761252415225,1.59,189.77,189.72,7.4725]
[1761252416731,1.59,189.77,189.73,2.73]
[1761252419232,1.59,189.77,189.73,7.4722]
[1761252421034,1.59,189.77,189.74,2.65]
[1761252421830,6.3307,189.8,189.74,7.3919]
[1761252422029,7.93038559,189.8,189.74,7.3919]
[1761252424031,7.93038559,189.8,189.76,2.65]
[1761252425033,1.59,189.79,189.76,2.65]
[1761252425439,4.7407,189.8,189.76,2.65]
[1761252425732,6.3307,189.8,189.76,2.65]
[1761252426130,4.7407,189.8,189.76,2.65]
[1761252426434,1.59,189.79,189.76,2.65]
[1761252429733,1.59,189.78,189.76,2.65]
[1761252431040,1.59,189.76,189.73,2.65]
[1761252434848,1.59,189.74,189.71,2.65]
[1761252435044,1.59968559,189.75,189.71,2.65]
[1761252435243,3.18968559,189.75,189.71,2.65]
[1761252435448,7.93158559,189.75,189.71,2.65]
[1761252435744,1.59,189.74,189.68,7.3935]
[1761252436044,1.59,189.74,189.69,2.65]
[1761252436839,3.18968559,189.73,189.69,2.65]
[1761252437044,1.59,189.72,189.68,2.65]
[1761252437245,3.18968559,189.71,189.68,2.65]
[1761252437736,3.18968559,189.71,189.67,0.91721357]
[1761252437737,1.59,189.7,189.67,3.56721357]
[1761252437937,1.59,189.7,189.68,2.65]
[1761252438345,1.59,189.7,189.67,0.91721357]
[1761252438540,1.59,189.68,189.64,2.65]
[1761252439943,6.3327,189.72,189.64,2.65]
[1761252440143,1.59968559,189.73,189.65,1.59968559]
[1761252440446,1.59968559,189.73,189.66,2.65]
[1761252440842,3.18968559,189.73,189.66,2.65]
[1761252441150,3.18968559,189.7,189.64,2.65]
[1761252441348,1.59,189.7,189.64,2.65]
[1761252441745,1.59,189.7,189.66,2.65]
[1761252441943,5.47952531,189.72,189.66,2.65]
[1761252442142,1.59,189.73,189.66,2.65]
[1761252442949,6.3324,189.73,189.66,2.65]
[1761252443150,3.87983972,189.72,189.66,2.65]
[1761252443845,3.87983972,189.72,189.66,4.7439]
[1761252444052,1.59,189.71,189.67,2.65]
[1761252445943,3.18968559,189.71,189.67,2.65]
[1761252446144,3.18968559,189.69,189.63,0.91752795]
[1761252446349,1.59,189.68,189.63,3.70752795]
[1761252446948,1.59,189.68,189.63,2.79]
[1761252447655,1.59,189.66,189.63,2.79]
[1761252447955,1.59968559,189.65,189.59,2.79]
[1761252448950,1.59968559,189.65,189.59,4.7457]
[1761252449149,3.18968559,189.65,189.6,2.89]
[1761252449854,1.59,189.6,189.54,2.89]
[1761252450153,9.4859,189.71,189.54,2.89]
[1761252450154,1.59,189.58,189.54,2.89]
[1761252450358,1.59968559,189.59,189.54,2.89]
[1761252450555,3.18968559,189.59,189.54,2.89]
[1761252450852,1.59968559,189.59,189.54,2.89]
[1761252451053,6.3362,189.58,189.52,0.91803625]
[1761252451257,1.59,189.57,189.52,2.89]
[1761252451553,1.59,189.65,189.59,2.89]
[1761252451746,4.84395643,189.71,189.63,1.59968559]
[1761252451747,1.59,189.71,189.63,1.59968559]
[1761252451947,1.59,189.71,189.64,2.89]
[1761252452755,1.59,189.71,189.53,10.38]
[1761252452756,1.59,189.71,189.68,1.59968559]
[1761252453160,5.62336838,189.75,189.68,4.48968559]
[1761252453456,1.59,189.71,189.64,4.48968559]
[1761252454653,1.59,189.71,189.66,1.59968559]
[1761252454858,1.59,189.71,189.66,4.48968559]
[1761252456563,1.59,189.7,189.66,4.48968559]
[1761252460261,1.59,189.69,189.62,2.89]
[1761252460454,1.59,189.69,189.62,4.48968559]
[1761252462159,4.7438,189.68,189.62,4.48968559]
[1761252463161,4.7438,189.68,189.62,1.59968559]
[1761252463366,6.3338,189.68,189.63,2.89]
[1761252464866,4.7438,189.68,189.63,2.89]
[1761252465065,1.59,189.67,189.63,2.89]
[1761252465560,4.7431,189.7,189.64,1.59968559]
[1761252465762,3.18968559,189.74,189.67,2.89]
[1761252466265,4.7427,189.72,189.67,2.89]
[1761252469178,6.3322,189.74,189.67,2.89]
[1761252469473,6.3322,189.74,189.68,4.48968559]
[1761252469669,3.18968559,189.74,189.68,2.89]
[1761252470974,4.7425,189.73,189.68,2.89]
[1761252471574,1.59,189.74,189.68,2.89]
[1761252471774,4.7419,189.75,189.68,2.89]
[1761252472771,4.7419,189.75,189.69,2.89]
[1761252472969,6.3315,189.77,189.71,2.89]
[1761252473377,1.59,189.77,189.71,2.89]
[1761252474576,4.7417,189.76,189.71,2.89]
[1761252474968,6.3317,189.76,189.71,2.89]
[1761252476074,4.7411,189.78,189.7,1.59968559]
[1761252476283,4.7411,189.78,189.73,2.89]
[1761252476484,6.3311,189.78,189.73,2.89]
[1761252476681,1.59,189.78,189.74,2.89]
[1761252476876,1.59,189.81,189.74,4.48968559]
[1761252477081,5.47096457,189.81,189.74,4.48968559]
[1761252477482,1.59,189.81,189.74,4.48968559]
[1761252477882,1.59,189.81,189.75,2.89]
[1761252478179,6.3307,189.8,189.75,2.89]
[1761252479181,4.7409,189.79,189.75,2.89]
[1761252479388,10.20133462,189.79,189.75,2.89]
[1761252479590,6.3209,189.79,189.75,2.89]
[1761252480990,1.58,189.78,189.72,7.5125]
[1761252481188,1.58,189.77,189.7,4.7429]
[1761252481578,1.58,189.77,189.7,7.5129]
[1761252481790,6.3214,189.77,189.71,7.5127]
[1761252482584,6.3214,189.77,189.71,4.7427]
[1761252482893,6.3214,189.77,189.72,2.77]
[1761252483192,6.3214,189.77,189.73,2.77]
[1761252483692,7.23941701,189.79,189.73,2.77]
[1761252483892,3.88606016,189.78,189.73,2.77]
[1761252484083,5.46606016,189.78,189.73,2.77]
[1761252484284,1.58,189.78,189.73,2.77]
[1761252484492,4.7409,189.79,189.73,2.77]
[1761252484693,4.7409,189.79,189.74,2.77]
[1761252484995,6.3209,189.79,189.74,2.77]
[1761252485293,4.7409,189.79,189.74,2.77]
[1761252485690,2.49851701,189.81,189.75,2.77]
[1761252485691,4.7404,189.81,189.75,2.77]
[1761252486201,6.3204,189.81,189.75,2.77]
[1761252486691,0.14517,189.82,189.73,2.77]
[1761252487990,0.14517,189.82,189.78,2.77]
[1761252489992,0.14517,189.82,189.76,2.77]
[1761252490588,1.58,189.81,189.73,2.77]
[1761252490789,1.58,189.8,189.73,2.77]
[1761252491095,4.07851701,189.77,189.73,2.77]
[1761252491290,1.58,189.76,189.72,144.37378587]
[1761252491495,1.58,189.76,189.72,147.14378587]
[1761252491692,2.49851701,189.77,189.73,2.77]
[1761252491997,1.58,189.8,189.73,2.77]
[1761252492198,4.07851701,189.78,189.73,2.77]
[1761252492390,1.58,189.77,189.73,2.77]
[1761252492998,1.58,189.77,189.73,7.5122]
[1761252493800,1.58,189.77,189.73,2.77]
[1761252495098,6.3214,189.77,189.73,2.77]
[1761252496389,2.49851701,189.78,189.69,4.7432]
[1761252496390,6.3217,189.76,189.69,4.7432]
[1761252496706,1.58,189.74,189.65,2.77]
[1761252496998,1.58,189.74,189.68,7.5134]
[1761252497194,1.58,189.74,189.68,4.7434]
[1761252497393,1.58,189.74,189.69,2.77]
[1761252497998,1.58,189.73,189.69,2.77]
[1761252502304,1.58,189.73,189.68,7.5134]
[1761252503001,1.58,189.72,189.66,4.7439]
[1761252503504,1.58,189.72,189.66,7.5139]
[1761252505201,6.3227,189.72,189.66,7.5139]
[1761252507511,1.59,189.71,189.66,7.5139]
[1761252507712,1.59,189.71,189.66,4.7439]
[1761252508007,1.59,189.71,189.66,7.3639]
[1761252508807,1.59,189.71,189.66,4.7439]
[1761252509010,1.59,189.71,189.67,2.61]
[1761252509809,4.7427,189.72,189.64,7.3545]
[1761252509810,1.59,189.72,189.64,7.3545]
[1761252510010,5.45852848,189.74,189.66,2.61]
[1761252510211,1.59,189.74,189.66,2.61]
[1761252511108,6.3321,189.74,189.67,2.61]
[1761252511308,3.86852848,189.73,189.67,2.61]
[1761252511511,1.59,189.74,189.67,2.61]
[1761252513017,4.7424,189.73,189.67,2.61]
[1761252513716,4.7419,189.75,189.69,2.61]
[1761252513918,6.3319,189.75,189.69,2.61]
[1761252514114,1.59,189.74,189.69,2.61]
[1761252515019,6.3314,189.77,189.7,2.61]
[1761252515314,1.59,189.75,189.7,2.61]
[1761252515815,1.59,189.74,189.7,2.61]
[1761252516010,3.87313807,189.75,189.7,2.61]
[1761252516405,8.61483807,189.76,189.7,2.61]
[1761252521107,8.61483807,189.76,189.7,7.353]
[1761252521719,10.20483807,189.76,189.7,7.353]
[1761252521917,5.46313807,189.75,189.71,2.61]
[1761252522117,1.59,189.75,189.71,2.61]
[1761252522317,5.45162882,189.75,189.71,2.61]
[1761252522918,1.59,189.74,189.71,2.61]
[1761252523516,1.59,189.74,189.68,4.7435]
[1761252523723,5.45162882,189.74,189.68,4.7435]
[1761252524424,5.45162882,189.74,189.68,7.3535]
[1761252525017,5.45162882,189.74,189.7,2.61]
[1761252525716,1.59,189.73,189.7,2.61]
[1761252528925,1.59,189.74,189.7,2.61]
[1761252529419,6.332,189.75,189.72,2.61]
[1761252530323,1.59,189.74,189.72,2.61]
[1761252530523,1.59,189.74,189.7,2.61]
[1761252530926,5.45282746,189.74,189.7,2.61]
[1761252532320,3.86282746,189.74,189.71,2.61]
[1761252532628,1.59,189.74,189.71,2.61]
[1761252534420,5.4594276,189.74,189.71,2.61]
[1761252535125,7.34247344,189.79,189.65,2.49851701]
[1761252535126,1.59,189.78,189.72,2.61]
[1761252535431,1.59,189.76,189.72,2.61]
[1761252535730,5.46209283,189.76,189.72,2.61]
[1761252535928,1.59,189.76,189.72,2.61]
[1761252536133,5.46209283,189.76,189.72,7.3524]
[1761252537228,3.87209283,189.75,189.72,7.3524]
[1761252538428,3.87209283,189.74,189.72,7.3524]
[1761252538624,3.87209283,189.75,189.72,7.3524]
[1761252538825,3.87209283,189.74,189.72,7.3524]
[1761252540835,5.47213425,189.76,189.72,7.6124]
[1761252541039,5.46209283,189.75,189.72,7.6124]
[1761252541332,3.87209283,189.74,189.72,7.6124]
[1761252541928,3.87209283,189.73,189.72,2.87]
[1761252545642,5.46209283,189.73,189.7,7.6128]
[1761252545942,5.46209283,189.73,189.71,2.87]
[1761252547345,1.59,189.73,189.71,2.87]
[1761252547839,5.47213425,189.74,189.71,2.87]
[1761252548145,7.06213425,189.74,189.71,2.87]
[1761252549747,3.87209283,189.74,189.71,2.87]
[1761252549949,5.46209283,189.74,189.71,2.87]
[1761252551153,7.06213425,189.74,189.71,2.87]
[1761252553348,3.87209283,189.73,189.71,2.87]
[1761252553753,1.59,189.71,189.65,2.87]
[1761252554053,1.59,189.68,189.65,2.87]
[1761252554455,5.46209283,189.68,189.65,2.87]
[1761252554657,1.59,189.68,189.65,2.87]
[1761252554957,1.59,189.68,189.65,7.6141]
[1761252556953,1.59,189.68,189.66,2.87]
[1761252557154,3.19004142,189.68,189.66,2.87]
[1761252561659,1.59,189.68,189.66,2.87]
[1761252561965,3.19004142,189.68,189.66,2.87]
[1761252562159,3.19004142,189.68,189.65,4.7441]
[1761252562362,6.41425839,189.76,189.62,2.87]
[1761252562363,1.59,189.65,189.62,2.87]
[1761252562554,1.59,189.68,189.62,2.87]
[1761252562758,1.59,189.68,189.63,2.87]
[1761252562957,1.59,189.68,189.64,2.87]
[1761252566671,1.59,189.67,189.59,2.7]
[1761252566967,1.59,189.67,189.6,2.7]
[1761252566968,4.7442,189.66,189.6,2.7]
[1761252567369,6.3342,189.66,189.6,2.7]
[1761252567971,1.59,189.65,189.62,2.7]
[1761252569975,1.59,189.65,189.61,9.21514142]
[1761252571469,1.59,189.65,189.61,6.34514142]
[1761252571669,1.59,189.65,189.62,2.87]
[1761252572876,4.7444,189.65,189.62,2.87]
[1761252573078,15.79,189.74,189.59,2.87]
[1761252573079,1.58,189.64,189.59,2.87]
[1761252574182,1.58,189.63,189.59,2.87]
[1761252574582,1.58,189.63,189.58,1.60004142]
[1761252574583,1.58,189.6,189.57,4.47004142]
[1761252574881,6.3254,189.61,189.58,2.87]
[1761252576877,1.58,189.67,189.6,2.87]
[1761252577079,1.58,189.67,189.61,4.47004142]
[1761252577680,4.7444,189.65,189.62,2.87]
[1761252579081,6.3239,189.67,189.63,1.60004142]
[1761252579288,1.58,189.66,189.64,2.87]
[1761252579582,6.3239,189.67,189.64,2.87]
[1761252579782,6.3239,189.67,189.65,1.60004142]
[1761252581689,1.58,189.68,189.65,2.87]
[1761252581980,1.58,189.68,189.58,43.66]
[1761252581981,6.3234,189.69,189.66,1.60004142]
[1761252582176,6.3234,189.69,189.66,4.47004142]
[1761252583889,4.7434,189.69,189.66,1.60004142]
[1761252584085,1.58,189.67,189.64,1.60004142]
[1761252584680,1.58,189.67,189.66,1.60004142]
[1761252586286,4.7436,189.68,189.66,4.47004142]
[1761252587180,6.3236,189.68,189.66,4.47004142]
[1761252587381,1.58,189.67,189.66,1.60004142]
[1761252587886,1.58,189.67,189.63,7.6146]
[1761252588084,1.58,189.67,189.66,1.60004142]
[1761252591786,1.58,189.65,189.64,1.60004142]
[1761252594789,4.7442,189.66,189.64,4.47004142]
[1761252595390,6.3242,189.66,189.64,2.87]
[1761252595590,6.3242,189.66,189.65,1.60004142]
[1761252596992,6.3236,189.68,189.65,1.60004142]
[1761252597191,3.878904,189.67,189.65,1.60004142]